bitfinex/quotes_ETHUSD_20250603
["timestamp","ask_amount","ask_price","bid_price","bid_amount"]
[1748954933954,3.82995021,2611.0,2610.9,7.865]
[1748954939345,3.82995021,2611.0,2610.9,7.864]
[1748954939551,3.84866499,2611.9,2611.3,3.82947853]
[1748954939848,3.84864122,2611.9,2611.4,6.245]
[1748954940046,3.82877708,2611.8,2611.5,1.619]
[1748954941067,4.37892368,2611.7,2611.6,7.864]
[1748954941272,3.82966276,2611.2,2610.8,1.19837135]
[1748954941487,3.82980419,2611.1,2610.9,7.864]
[1748954941649,3.82974234,2611.2,2611.0,8.0]
[1748954942287,4.61457458,2611.3,2611.0,8.0]
[1748954942488,0.785,2611.3,2611.0,8.0]
[1748954942851,3.82951652,2611.3,2611.0,8.0]
[1748954943188,4.58768377,2611.5,2611.1,6.245]
[1748954943189,3.82966003,2611.2,2611.1,6.245]
[1748954945193,3.82957914,2611.3,2611.1,6.245]
[1748954945955,3.82936539,2611.4,2611.1,6.245]
[1748954945956,3.82947833,2611.4,2611.1,6.245]
[1748954946175,4.5876793,2611.5,2611.1,6.245]
[1748954946176,3.82951137,2611.3,2611.1,6.245]
[1748954947380,3.82942629,2611.4,2611.1,6.245]
[1748954947780,3.82965686,2611.2,2611.1,6.245]
[1748954948671,3.82958947,2611.3,2611.1,6.245]
[1748954949090,3.82965686,2611.2,2611.1,6.245]
[1748954949481,3.82958709,2611.3,2611.1,6.245]
[1748954949992,3.82965686,2611.2,2611.1,6.245]
[1748954951192,3.82959793,2611.3,2611.1,6.245]
[1748954952499,3.82965686,2611.2,2611.1,6.245]
[1748954953697,3.82952949,2611.3,2610.9,1.619]
[1748954953924,3.82979344,2611.2,2611.1,6.244]
[1748954954128,5.17546355,2611.4,2610.9,1.619]
[1748954954275,3.82989178,2611.1,2611.0,6.244]
[1748954955106,3.82989178,2611.1,2610.6,6.73249515]
[1748954955306,3.82989178,2611.1,2611.0,1.619]
[1748954956179,3.82989178,2611.1,2611.0,7.863]
[1748954956912,3.8297371,2611.2,2611.0,7.863]
[1748954958009,0.7965,2611.1,2610.5,18.39723122]
[1748954958311,4.62630353,2611.1,2611.0,1.619]
[1748954958723,5.17630353,2611.1,2611.0,1.619]
[1748954958902,5.17630353,2611.1,2611.0,7.863]
[1748954959214,6.07690269,2611.1,2611.0,7.863]
[1748954959519,14.33203935,2611.1,2611.0,1.619]
[1748954959720,14.33203935,2611.1,2611.0,7.863]
[1748954960218,14.33205482,2611.1,2611.0,7.863]
[1748954960984,13.96520269,2611.1,2611.0,7.863]
[1748954965284,11.73980353,2611.1,2611.0,7.863]
[1748954966726,5.1978969,2610.9,2610.8,0.66666667]
[1748954966926,5.56458292,2610.9,2610.8,6.91166667]
[1748954967140,3.8300969,2610.9,2610.8,6.91166667]
[1748954974115,3.8300969,2610.9,2610.8,0.66666667]
[1748954974318,6.40186494,2610.9,2610.8,8.53066667]
[1748954982681,6.40186494,2610.9,2610.8,0.66666667]
[1748954982977,7.56504522,2610.9,2610.8,6.91166667]
[1748954984062,7.56510072,2610.9,2610.8,6.91166667]
[1748954987985,7.19866494,2610.9,2610.8,6.91166667]
[1748954988184,7.56537327,2610.9,2610.8,6.91166667]
[1748954989587,7.56537327,2610.9,2610.8,0.66666667]
[1748954990385,7.19866494,2610.9,2610.8,0.66666667]
[1748954990592,7.56543591,2610.9,2610.8,0.66666667]
[1748954992199,7.56546611,2610.9,2610.8,0.66666667]
[1748954992691,15.47546611,2610.9,2610.8,0.66666667]
[1748954995594,15.47546611,2610.9,2610.8,6.91166667]
[1748954996174,15.4756838,2610.9,2610.8,6.91166667]
[1748954999973,0.34349467,2610.9,2610.8,7.68066667]
[1748955000176,9.89166131,2612.0,2610.8,7.68066667]
[1748955000177,3.82945836,2611.4,2610.9,4.62899045]
[1748955000382,3.82965411,2611.3,2610.9,0.7989]
[1748955000584,3.82922125,2611.5,2610.9,0.7989]
[1748955000783,3.82995021,2611.0,2610.9,0.7989]
[1748955001072,3.82995021,2611.0,2610.9,8.6799]
[1748955001415,3.82995021,2611.0,2610.9,7.881]
[1748955001568,3.8300969,2610.9,2610.8,0.66666667]
[1748955001772,3.8300969,2610.9,2610.8,8.54766667]
[1748955002413,3.82999252,2611.0,2610.8,8.54766667]
[1748955003781,3.8300969,2610.9,2610.8,8.54766667]
[1748955004113,3.8300969,2610.9,2610.8,8.54466667]
[1748955006209,3.8300969,2610.9,2610.8,0.66666667]
[1748955006409,4.3800969,2610.9,2610.8,8.54266667]
[1748955013493,4.3800969,2610.9,2610.8,2.28466667]
[1748955013691,4.3800969,2610.9,2610.8,8.53966667]
[1748955014623,4.3800969,2610.9,2610.8,2.28466667]
[1748955014833,6.06736465,2610.9,2610.8,2.28466667]
[1748955014988,6.87816465,2610.9,2610.8,2.28466667]
[1748955015192,7.24466923,2610.9,2610.8,8.53966667]
[1748955015588,15.15466923,2610.9,2610.8,0.66666667]
[1748955015795,18.05670896,2610.9,2610.8,0.66666667]
[1748955017393,15.15466923,2610.9,2610.8,0.66666667]
[1748955019022,15.15459931,2610.9,2610.8,0.66666667]
[1748955020350,15.1545953,2610.9,2610.8,0.66666667]
[1748955020519,18.05663503,2610.9,2610.8,0.66666667]
[1748955022646,15.1545953,2610.9,2610.8,0.66666667]
[1748955023125,14.78816465,2610.9,2610.8,0.66666667]
[1748955023320,15.15451007,2610.9,2610.8,0.66666667]
[1748955024944,18.0565498,2610.9,2610.8,0.66666667]
[1748955025144,26.0565498,2610.9,2610.8,0.66666667]
[1748955025526,3.83053704,2610.6,2610.5,6.247]
[1748955025728,12.10688246,2610.6,2610.5,6.247]
[1748955026550,12.10688246,2610.6,2610.4,1.618]
[1748955026551,4.38068377,2610.5,2610.4,1.618]
[1748955026865,4.38068377,2610.5,2610.4,7.864]
[1748955029347,4.38068377,2610.5,2610.4,1.618]
[1748955029550,7.19014789,2610.5,2610.4,7.864]
[1748955029752,7.55625513,2610.5,2610.4,7.864]
[1748955030161,4.38156442,2609.9,2609.8,0.7666]
[1748955030359,3.83171124,2609.8,2609.7,14.44766667]
[1748955030667,3.83171124,2609.8,2609.7,22.31266667]
[1748955031176,3.83171124,2609.8,2609.7,16.06666667]
[1748955031481,3.83171124,2609.8,2609.7,22.31266667]
[1748955035860,3.83171124,2609.8,2609.7,14.44766667]
[1748955036065,3.83171124,2609.8,2609.7,22.31466667]
[1748955038849,3.83171124,2609.8,2609.7,16.06666667]
[1748955039049,3.83171124,2609.8,2609.7,22.31366667]
[1748955041347,3.83171124,2609.8,2609.7,8.53266667]
[1748955042057,3.83171124,2609.8,2609.7,9.30236667]
[1748955042275,3.83167373,2609.9,2609.7,12.2044064]
[1748955042464,3.83170803,2609.9,2609.7,12.2044064]
[1748955042859,3.83144774,2610.0,2609.7,12.2044064]
[1748955043085,3.83144774,2610.0,2609.8,0.7884]
[1748955043782,11.74135478,2610.1,2610.0,0.8207]
[1748955044084,11.74135478,2610.1,2610.0,7.0677]
[1748955044643,11.74127083,2610.1,2610.0,0.8207]
[1748955044875,11.74127083,2610.1,2610.0,8.6867]
[1748955045054,7.91,2610.1,2610.0,8.6867]
[1748955051874,3.83103751,2610.3,2610.0,8.6867]
[1748955052200,3.83104457,2610.3,2610.0,8.6867]
[1748955052703,3.83113241,2610.2,2610.0,8.6867]
[1748955053459,3.83104769,2610.3,2610.0,8.6867]
[1748955053802,3.83111765,2610.3,2610.0,8.6867]
[1748955053994,3.83121169,2610.2,2610.0,8.6867]
[1748955057211,3.83119525,2610.2,2610.0,8.6867]
[1748955057381,3.83119525,2610.2,2610.1,6.247]
[1748955057587,3.83119525,2610.2,2610.0,1.619]
[1748955057588,3.83127083,2610.1,2610.0,1.619]
[1748955057788,3.83127083,2610.1,2610.0,7.866]
[1748955058611,0.55,2610.4,2610.0,7.866]
[1748955058817,3.83127083,2610.1,2610.0,7.866]
[1748955059199,3.8311891,2610.2,2610.0,7.866]
[1748955060136,3.83098392,2610.3,2610.0,7.866]
[1748955060339,3.83098392,2610.3,2610.1,0.7591]
[1748955060554,7.91,2610.6,2610.1,2.90203973]
[1748955060832,3.83046528,2610.7,2610.5,0.8229]
[1748955061027,3.83046528,2610.7,2610.6,7.866]
[1748955062597,4.58625655,2611.0,2610.6,7.866]
[1748955062598,3.83013723,2610.9,2610.6,7.866]
[1748955062795,7.91,2611.1,2610.6,7.866]
[1748955062796,3.83039031,2610.7,2610.6,7.866]
[1748955066269,4.63800941,2610.8,2610.2,3.69323973]
[1748955066567,3.83129782,2610.1,2610.0,0.7912]
[1748955066737,3.83117065,2610.2,2610.0,8.6562]
[1748955066940,3.83117065,2610.2,2610.0,11.55823973]
[1748955067146,3.83105876,2610.3,2610.0,11.55823973]
[1748955067348,3.83090642,2610.4,2610.0,11.55823973]
[1748955067571,3.83105295,2610.3,2610.0,11.55823973]
[1748955067866,3.83090666,2610.4,2610.0,11.55823973]
[1748955068071,3.83104264,2610.3,2610.0,11.55823973]
[1748955069045,11.74040537,2610.7,2610.0,11.55823973]
[1748955069353,3.83105612,2610.3,2610.0,11.55823973]
[1748955069563,3.83119052,2610.2,2610.1,7.865]
[1748955069924,3.83119052,2610.2,2610.1,1.619]
[1748955070145,3.83119052,2610.2,2610.1,7.865]
[1748955072491,3.83119052,2610.2,2609.8,2.90203973]
[1748955072492,3.8313815,2610.1,2609.8,2.90203973]
[1748955072692,3.83119052,2610.2,2609.9,7.865]
[1748955072893,3.83135714,2610.1,2610.0,7.865]
[1748955073197,3.83148211,2610.0,2609.8,2.90203973]
[1748955073402,3.83148211,2610.0,2609.9,7.865]
[1748955073601,3.83134388,2610.1,2609.8,2.90203973]
[1748955073783,3.83127083,2610.1,2609.9,7.865]
[1748955073954,3.83139694,2610.1,2609.9,7.865]
[1748955074496,3.83120942,2610.2,2609.9,7.865]
[1748955075031,8.7386,2610.7,2610.1,0.7536]
[1748955075189,4.19733172,2610.6,2610.2,2.90203973]
[1748955075509,4.19733172,2610.6,2610.3,6.246]
[1748955075510,3.83075334,2610.5,2610.3,6.246]
[1748955075667,3.83083052,2610.4,2610.3,6.246]
[1748955076117,3.83076349,2610.5,2610.3,6.246]
[1748955076484,3.83061129,2610.6,2610.4,2.90203973]
[1748955076708,3.83061129,2610.6,2610.5,1.619]
[1748955081469,3.83061129,2610.6,2610.5,7.865]
[1748955083830,3.83053704,2610.6,2610.5,8.65]
[1748955084711,3.83053704,2610.6,2610.5,7.865]
[1748955095067,7.91,2611.2,2610.6,0.7581]
[1748955095204,7.91,2611.2,2610.9,2.90203973]
[1748955095404,11.73974343,2611.2,2611.0,6.245]
[1748955095628,7.91,2611.2,2611.1,1.618]
[1748955096169,7.91,2611.2,2611.1,4.52003973]
[1748955096306,3.82937475,2611.4,2611.1,4.52003973]
[1748955096656,3.82918176,2611.6,2611.2,0.8]
[1748955096855,3.82927281,2611.5,2611.3,6.245]
[1748955098148,3.82936355,2611.4,2611.3,6.245]
[1748955098555,3.8295102,2611.3,2611.2,0.8]
[1748955099150,3.8295102,2611.3,2611.2,8.662]
[1748955099349,3.82975519,2611.2,2611.0,0.816]
[1748955099548,3.8295102,2611.3,2611.2,7.862]
[1748955100450,3.82987943,2611.1,2610.8,8.816]
[1748955100647,3.82973775,2611.2,2610.9,7.862]
[1748955100854,4.60172816,2611.4,2610.9,10.76403973]
[1748955101002,3.82967613,2611.2,2610.9,10.76403973]
[1748955105254,3.82980593,2611.1,2610.9,2.90203973]
[1748955105402,3.82980353,2611.1,2611.0,7.861]
[1748955108151,4.37980353,2611.1,2611.0,7.861]
[1748955109446,4.58826355,2611.4,2611.0,7.861]
[1748955109447,3.82957787,2611.3,2611.0,7.861]
[1748955109626,4.37971598,2611.2,2611.0,7.861]
[1748955109943,0.7589,2611.4,2611.0,7.861]
[1748955110163,3.82967305,2611.2,2611.0,7.861]
[1748955112656,3.82958787,2611.3,2611.0,10.76303973]
[1748955112888,3.82966721,2611.2,2611.0,10.76303973]
[1748955114555,3.82980353,2611.1,2611.0,10.76303973]
[1748955114871,3.82980353,2611.1,2611.0,7.861]
[1748955115458,3.82980353,2611.1,2611.0,1.618]
[1748955115656,3.83013928,2610.9,2610.6,11.67153973]
[1748955115856,3.83013928,2610.9,2610.7,7.861]
[1748955116396,3.83013928,2610.9,2610.8,6.243]
[1748955116892,3.83021659,2610.9,2610.8,7.86]
[1748955117995,3.82983356,2611.1,2610.9,2.90203973]
[1748955119707,3.82995021,2611.0,2610.8,1.617]
[1748955119878,3.82995021,2611.0,2610.9,6.243]
[1748955120094,3.82995021,2611.0,2610.8,1.617]
[1748955120274,3.82995021,2611.0,2610.9,6.243]
[1748955120684,3.8300969,2610.9,2610.8,1.617]
[1748955120991,0.55,2610.9,2610.8,1.617]
[1748955121300,4.38015964,2610.9,2610.8,7.859]
[1748955121877,4.38015964,2610.9,2610.8,1.617]
[1748955122178,4.38015964,2610.9,2610.8,7.859]
[1748955123563,0.55,2610.9,2610.8,7.859]
[1748955123785,4.3800969,2610.9,2610.8,7.859]
[1748955124187,3.82998055,2611.0,2610.8,8.6186]
[1748955124387,4.65226564,2611.4,2610.8,8.6186]
[1748955124388,3.8300969,2610.9,2610.8,7.859]
[1748955127592,4.37980353,2611.1,2610.8,7.859]
[1748955127895,4.64901497,2611.2,2610.8,7.859]
[1748955127896,3.82972445,2611.2,2610.9,2.90203973]
[1748955128101,3.82972445,2611.2,2610.9,3.66483973]
[1748955129108,3.82984946,2611.1,2610.9,3.66483973]
[1748955130611,0.55,2611.3,2610.5,8.8018]
[1748955130811,0.8193,2611.4,2611.0,1.617]
[1748955130812,5.18390353,2611.1,2611.0,1.617]
[1748955131013,5.18390353,2611.1,2611.0,7.859]
[1748955134638,5.18390353,2611.1,2611.0,1.617]
[1748955134828,5.18390353,2611.1,2611.0,7.859]
[1748955140246,5.55082472,2611.1,2611.0,7.859]
[1748955140454,6.95943748,2611.1,2611.0,7.859]
[1748955140954,7.32635639,2611.1,2611.0,7.859]
[1748955142156,7.32636273,2611.1,2611.0,7.859]
[1748955144946,7.32636273,2611.1,2611.0,1.617]
[1748955145251,7.32636273,2611.1,2611.0,7.858]
[1748955145620,7.30536273,2611.1,2611.0,7.858]
[1748955146257,6.93843748,2611.1,2611.0,7.858]
[1748955146459,7.30540065,2611.1,2611.0,7.858]
[1748955149546,6.52230065,2611.1,2611.0,7.858]
[1748955154478,6.52217004,2611.1,2611.0,7.858]
[1748955155132,6.52217004,2611.1,2611.0,1.617]
[1748955155441,6.52217004,2611.1,2611.0,7.858]
[1748955156581,3.83039031,2610.7,2610.6,0.7664]
[1748955156874,3.83039031,2610.7,2610.6,8.6234]
[1748955157876,3.83039031,2610.7,2610.6,0.7664]
[1748955158087,3.83083052,2610.4,2610.3,14.5926]
[1748955158287,3.83083052,2610.4,2610.3,16.2086]
[1748955158491,3.83083052,2610.4,2610.3,22.4496]
[1748955159584,0.55,2610.8,2610.3,22.4496]
[1748955159879,0.55,2610.8,2610.3,20.89533594]
[1748955160248,3.83078117,2610.5,2610.3,20.89533594]
[1748955160640,3.83083052,2610.4,2610.3,20.89533594]
[1748955161643,3.8307663,2610.5,2610.3,20.89533594]
[1748955164993,3.83049193,2610.7,2610.3,20.89533594]
[1748955165152,3.83069255,2610.5,2610.3,20.89533594]
[1748955165484,3.83069889,2610.5,2610.3,20.89533594]
[1748955165987,3.83060635,2610.6,2610.3,20.89533594]
[1748955166197,3.83060635,2610.6,2610.4,2.90203973]
[1748955166684,3.83068377,2610.5,2610.4,2.90203973]
[1748955167584,3.83068377,2610.5,2610.3,8.6716]
[1748955168485,3.83068377,2610.5,2610.3,2.4306]
[1748955168666,3.83068377,2610.5,2610.4,6.24]
[1748955171171,3.83068377,2610.5,2610.3,0.8146]
[1748955171478,3.83068377,2610.5,2610.4,7.856]
[1748955174869,3.83063538,2610.6,2610.4,7.856]
[1748955175271,3.83068377,2610.5,2610.4,7.856]
[1748955176188,3.83063234,2610.6,2610.4,7.856]
[1748955176392,3.83068377,2610.5,2610.4,7.856]
[1748955176606,0.55,2610.9,2610.5,0.8211]
[1748955176792,3.83053704,2610.6,2610.5,0.8211]
[1748955186620,3.83049574,2610.7,2610.5,0.8211]
[1748955186790,3.83053704,2610.6,2610.5,0.8211]
[1748955187322,3.83046484,2610.7,2610.5,0.8211]
[1748955187484,3.83039031,2610.7,2610.5,0.8211]
[1748955187684,3.83053704,2610.6,2610.5,0.8211]
[1748955188105,3.83053704,2610.6,2610.5,7.0591]
[1748955188311,3.83053704,2610.6,2610.5,6.238]
[1748955190518,3.83053704,2610.6,2610.5,7.853]
[1748955195037,3.83095472,2610.4,2610.2,13.779]
[1748955195201,3.83095472,2610.4,2610.3,7.853]
[1748955195504,3.83073324,2610.5,2610.3,7.853]
[1748955196141,3.83032455,2610.8,2610.4,2.90203973]
[1748955196439,3.83055094,2610.6,2610.4,2.90203973]
[1748955196939,3.83068377,2610.5,2610.3,7.853]
[1748955199343,3.83070074,2610.5,2610.3,7.853]
[1748955200344,0.55,2610.9,2610.3,7.853]
[1748955200544,3.83044763,2610.7,2610.5,0.8131]
[1748955200838,3.83053704,2610.6,2610.5,0.8131]
[1748955201635,3.83053704,2610.6,2610.4,2.90203973]
[1748955202706,3.8300969,2610.9,2610.4,2.90203973]
[1748955202908,3.83083052,2610.4,2610.2,13.779]
[1748955203107,3.83083052,2610.4,2610.3,7.852]
[1748955203416,3.83083052,2610.4,2610.2,13.779]
[1748955203417,3.83097728,2610.3,2610.2,13.779]
[1748955203743,3.83097728,2610.3,2610.2,21.631]
[1748955208661,4.38091059,2610.4,2610.2,21.631]
[1748955209673,3.83097728,2610.3,2610.2,21.631]
[1748955209961,4.38094974,2610.4,2610.2,21.631]
[1748955210166,3.83097728,2610.3,2610.2,21.631]
[1748955210741,5.99996998,2610.3,2610.2,15.393]
[1748955211130,5.99996998,2610.3,2610.2,21.63]
[1748955211390,5.99446998,2610.3,2610.2,15.393]
[1748955211533,3.83149581,2610.0,2609.9,1.614]
[1748955211738,3.83236683,2609.4,2609.1,13.801]
[1748955211940,3.83236683,2609.4,2609.2,7.851]
[1748955212539,3.83244548,2609.3,2609.2,7.851]
[1748955212739,3.83244548,2609.3,2609.2,15.851]
[1748955213043,0.7896,2609.6,2609.2,15.851]
[1748955213245,3.83231448,2609.4,2609.2,15.851]
[1748955215237,3.83231448,2609.4,2609.2,8.0]
[1748955215440,4.38232213,2609.4,2609.3,7.852]
[1748955217854,3.83224163,2609.5,2609.3,7.852]
[1748955218268,3.832079,2609.6,2609.3,7.852]
[1748955218663,3.83218647,2609.5,2609.3,7.852]
[1748955219782,3.83201568,2609.6,2609.4,2.90203973]
[1748955219984,3.83188368,2609.7,2609.4,3.68513973]
[1748955220549,3.83174869,2609.8,2609.6,2.90203973]
[1748955220748,3.83174869,2609.8,2609.7,6.238]
[1748955222649,0.55,2609.9,2609.7,7.852]
[1748955222851,3.83171124,2609.8,2609.7,7.852]
[1748955224508,5.13251124,2609.8,2609.7,1.614]
[1748955224652,5.13251124,2609.8,2609.7,7.852]
[1748955225162,5.13251124,2609.8,2609.7,1.614]
[1748955225378,5.13251124,2609.8,2609.7,7.852]
[1748955225582,6.45589066,2609.8,2609.7,7.852]
[1748955234213,6.45589066,2609.8,2609.7,7.851]
[1748955239806,3.83229861,2609.4,2609.3,0.66666667]
[1748955240011,3.83229861,2609.4,2609.3,8.51766667]
[1748955244224,4.38229861,2609.4,2609.3,2.28066667]
[1748955244396,4.38229861,2609.4,2609.3,8.51766667]
[1748955246800,3.83229861,2609.4,2609.3,8.51766667]
[1748955251207,3.83229861,2609.4,2609.3,8.51666667]
[1748955255346,8.7238,2609.7,2609.3,8.51666667]
[1748955255504,3.83229861,2609.4,2609.3,8.51666667]
[1748955255837,3.83221017,2609.5,2609.3,9.26676667]
[1748955256974,3.83221017,2609.5,2609.4,1.613]
[1748955258557,3.83201525,2609.6,2609.4,1.613]
[1748955258558,3.83207914,2609.6,2609.4,1.613]
[1748955259178,3.83215175,2609.5,2609.4,1.613]
[1748955260471,5.72812291,2609.5,2609.4,7.849]
[1748955262277,3.83229861,2609.4,2609.3,0.66666667]
[1748955262456,3.83229861,2609.4,2609.3,8.51566667]
[1748955263980,3.83229861,2609.4,2609.3,2.27966667]
[1748955264144,3.83229861,2609.4,2609.3,8.51566667]
[1748955267375,5.41915076,2609.4,2609.3,8.51566667]
[1748955267583,5.41915076,2609.4,2609.3,0.66666667]
[1748955267794,6.58242601,2609.4,2609.3,6.90266667]
[1748955268747,5.78652601,2609.4,2609.3,6.90266667]
[1748955268951,4.38229861,2609.4,2609.3,6.90266667]
[1748955269969,3.83229861,2609.4,2609.3,6.90266667]
[1748955274901,3.83229861,2609.4,2609.3,0.66666667]
[1748955275100,3.83229861,2609.4,2609.3,8.51466667]
[1748955278097,3.83229861,2609.4,2609.3,2.27866667]
[1748955278399,4.67395365,2609.4,2609.3,8.51366667]
[1748955286646,4.67395365,2609.4,2609.3,2.27866667]
[1748955286846,4.67395365,2609.4,2609.3,8.51366667]
[1748955289558,3.83229861,2609.4,2609.3,8.51366667]
[1748955295084,12.29186803,2609.7,2609.3,8.51366667]
[1748955295085,7.91,2609.7,2609.4,0.7718]
[1748955295240,3.83215175,2609.5,2609.4,3.67383973]
[1748955295645,3.83205527,2609.6,2609.4,3.67383973]
[1748955296286,3.83215175,2609.5,2609.4,3.67383973]
[1748955300794,3.83215175,2609.5,2609.4,0.7718]
[1748955300961,3.83215175,2609.5,2609.4,7.0048]
[1748955309312,3.83215175,2609.5,2609.4,6.233]
[1748955309885,3.83244548,2609.3,2609.2,13.786]
[1748955310089,3.83244548,2609.3,2609.2,15.396]
[1748955310386,3.83244548,2609.3,2609.2,21.628]
[1748955310588,4.63994548,2609.3,2609.2,21.628]
[1748955310915,5.64291172,2609.3,2609.2,21.628]
[1748955311924,5.64291172,2609.3,2609.2,7.842]
[1748955312145,4.63994548,2609.3,2609.2,7.842]
[1748955312285,3.83244548,2609.3,2609.2,7.842]
[1748955315226,3.83244548,2609.3,2609.2,1.61]
[1748955315395,3.83244548,2609.3,2609.2,7.842]
[1748955316628,3.83259236,2609.2,2609.1,0.02]
[1748955316826,3.83259236,2609.2,2609.1,7.862]
[1748955320742,3.83259236,2609.2,2609.1,0.02]
[1748955320942,3.83259236,2609.2,2609.1,7.862]
[1748955321505,3.83259236,2609.2,2609.1,1.63]
[1748955321701,4.59909614,2609.2,2609.1,7.862]
[1748955321911,5.14909614,2609.2,2609.1,0.02]
[1748955322142,5.98099614,2609.2,2609.1,7.862]
[1748955323912,5.98099614,2609.2,2609.1,7.861]
[1748955324959,5.98099614,2609.2,2609.1,1.63]
[1748955325268,5.98099614,2609.2,2609.1,7.861]
[1748955335109,5.98099614,2609.2,2609.1,1.63]
[1748955335313,5.98099614,2609.2,2609.1,7.861]
[1748955337476,5.98099614,2609.2,2609.1,0.02]
[1748955337676,5.98099614,2609.2,2609.1,7.86]
[1748955338476,5.21449236,2609.2,2609.1,7.86]
[1748955338695,4.38259236,2609.2,2609.1,7.86]
[1748955340414,4.38259236,2609.2,2609.1,1.629]
[1748955340619,4.38259236,2609.2,2609.1,7.859]
[1748955340770,5.53877148,2609.2,2609.1,1.629]
[1748955340971,6.47589318,2609.2,2609.1,1.629]
[1748955341199,6.47589318,2609.2,2609.1,7.859]
[1748955342441,6.47587156,2609.2,2609.1,7.859]
[1748955342643,5.92587156,2609.2,2609.1,7.859]
[1748955343437,6.47587156,2609.2,2609.1,7.859]
[1748955343640,6.47587156,2609.2,2609.1,0.02]
[1748955343845,6.47587156,2609.2,2609.1,6.25]
[1748955344507,14.38587156,2609.2,2609.1,0.02]
[1748955346549,14.38561061,2609.2,2609.1,0.02]
[1748955347277,14.38561061,2609.2,2609.1,6.25]
[1748955349157,14.38561061,2609.2,2609.1,0.02]
[1748955349353,22.38561061,2609.2,2609.1,0.02]
[1748955350542,22.38554867,2609.2,2609.1,0.02]
[1748955354561,22.3853632,2609.2,2609.1,0.02]
[1748955358686,22.38528707,2609.2,2609.1,0.02]
[1748955361280,22.01861406,2609.2,2609.1,0.02]
[1748955361580,22.38531488,2609.2,2609.1,0.02]
[1748955362149,22.01861406,2609.2,2609.1,0.02]
[1748955362351,22.38534118,2609.2,2609.1,0.02]
[1748955363283,22.3853511,2609.2,2609.1,0.02]
[1748955363888,22.38537903,2609.2,2609.1,0.02]
[1748955365472,22.38545452,2609.2,2609.1,0.02]
[1748955369642,22.38569792,2609.2,2609.1,0.02]
[1748955371886,12.65967622,2609.2,2609.1,0.02]
[1748955372301,12.29259236,2609.2,2609.1,0.02]
[1748955373024,12.65980648,2609.2,2609.1,0.02]
[1748955373236,12.29259236,2609.2,2609.1,0.02]
[1748955373428,12.65980091,2609.2,2609.1,0.02]
[1748955373643,12.65980088,2609.2,2609.1,0.02]
[1748955373827,12.29259236,2609.2,2609.1,0.02]
[1748955374004,12.65980011,2609.2,2609.1,0.02]
[1748955374206,12.29259236,2609.2,2609.1,0.02]
[1748955382862,12.29259236,2609.2,2609.1,6.247]
[1748955390632,12.29259236,2609.2,2609.1,0.02]
[1748955390837,12.29259236,2609.2,2609.1,6.246]
[1748955391977,4.38259236,2609.2,2609.1,6.246]
[1748955392182,3.83250884,2609.3,2609.2,0.7737]
[1748955402787,7.91,2609.9,2609.2,0.7737]
[1748955402951,3.83200656,2609.6,2609.5,3.73293973]
[1748955403149,3.83200656,2609.6,2609.5,11.56193973]
[1748955405792,7.91,2609.9,2609.5,11.56193973]
[1748955405995,3.83174661,2609.8,2609.5,11.56193973]
[1748955406291,3.8320049,2609.6,2609.5,11.56193973]
[1748955411389,3.8320049,2609.6,2609.5,7.828]
[1748955421316,3.8320049,2609.6,2609.5,1.605]
[1748955421526,3.8320049,2609.6,2609.5,7.827]
[1748955427558,3.8320049,2609.6,2609.5,7.826]
[1748955431759,0.55,2609.7,2609.1,8.807]
[1748955431932,0.7918,2609.8,2609.1,8.807]
[1748955431933,4.3820049,2609.6,2609.5,1.604]
[1748955432195,4.3820049,2609.6,2609.5,7.825]
[1748955433963,3.8320049,2609.6,2609.5,7.825]
[1748955434520,0.55,2609.7,2609.5,7.825]
[1748955434724,4.64640026,2610.2,2609.7,0.7769]
[1748955435037,4.64640026,2610.2,2610.1,2.90203973]
[1748955435242,4.64640026,2610.2,2610.1,10.72703973]
[1748955435631,8.47752431,2610.2,2610.1,10.72703973]
[1748955440279,8.47752431,2610.2,2610.1,7.825]
[1748955448261,8.47752431,2610.2,2610.1,1.604]
[1748955448473,8.47752431,2610.2,2610.1,7.823]
[1748955450008,4.64640026,2610.2,2610.1,10.72503973]
[1748955450204,8.47752431,2610.2,2610.1,11.50593973]
[1748955451243,8.47752431,2610.2,2610.1,10.72503973]
[1748955451701,8.47752431,2610.2,2610.1,7.823]
[1748955454037,8.47752431,2610.2,2610.1,10.72503973]
[1748955464430,4.64640026,2610.2,2610.1,11.51843973]
[1748955467573,4.64640026,2610.2,2610.1,23.34971056]
[1748955468545,4.64640026,2610.2,2610.1,19.51843973]
[1748955468749,4.64640026,2610.2,2610.1,23.34971056]
[1748955481060,4.64640026,2610.2,2610.1,17.13071056]
[1748955481264,4.64640026,2610.2,2610.1,23.34571056]
[1748955489192,4.64640026,2610.2,2610.1,22.81821202]
[1748955491196,4.64640026,2610.2,2610.1,19.51474981]
[1748955491403,4.64640026,2610.2,2610.1,18.72034981]
[1748955491596,4.64640026,2610.2,2610.1,22.55162064]
[1748955493479,4.64640026,2610.2,2610.1,18.72034981]
[1748955493672,4.64640026,2610.2,2610.1,22.55162064]
[1748955497194,4.64640026,2610.2,2610.1,23.36442064]
[1748955498088,4.64640026,2610.2,2610.1,10.90234981]
[1748955498399,4.64640026,2610.2,2610.1,22.54662064]
[1748955498892,4.64640026,2610.2,2610.1,14.73362064]
[1748955499100,4.64640026,2610.2,2610.1,22.54662064]
[1748955499275,4.64640026,2610.2,2610.1,14.73362064]
[1748955499475,4.64640026,2610.2,2610.1,22.54662064]
[1748955501085,4.64640026,2610.2,2610.1,12.50234981]
[1748955501289,0.8106,2610.1,2610.0,13.781]
[1748955501493,5.57068326,2610.1,2610.0,21.594]
[1748955501707,4.64187083,2610.1,2610.0,21.594]
[1748955502294,4.64187083,2610.1,2610.0,15.381]
[1748955502470,4.64187083,2610.1,2610.0,21.594]
[1748955504910,0.8106,2610.1,2610.0,21.594]
[1748955506311,4.64187083,2610.1,2610.0,21.594]
[1748955507887,4.64640026,2610.2,2610.0,21.594]
[1748955508180,4.64640026,2610.2,2610.1,2.90234981]